bitfinex-derivatives/quotes_BNBF0:USTF0_20251002
["timestamp","ask_amount","ask_price","bid_price","bid_amount"]
[1759442199286,0.82581995,1081.2,1079.6,0.16109508]
[1759442199488,0.82581995,1081.2,1078.2,0.81765172]
[1759442199685,0.82581995,1081.2,1079.6,0.16109508]
[1759442199984,0.82581995,1081.2,1078.2,0.81765172]
[1759442200284,1.65581995,1081.3,1078.9,0.16108911]
[1759442202087,0.83,1081.3,1078.9,0.16108911]
[1759442204586,1.65581995,1081.3,1078.9,0.16108911]
[1759442206686,0.83,1081.3,1078.9,0.16108911]
[1759442213494,0.82581995,1081.1,1078.9,0.16108911]
[1759442215393,0.82581995,1081.3,1078.9,0.16108911]
[1759442221595,0.16080625,1082.9,1078.9,0.16108911]
[1759442221596,0.82581995,1081.1,1078.9,0.16108911]
[1759442226401,0.82581995,1081.2,1078.9,0.16108911]
[1759442229109,0.82581995,1081.3,1078.9,0.16108911]
[1759442231010,0.82581995,1081.5,1078.9,0.16108911]
[1759442231208,0.82581995,1081.6,1078.9,0.16108911]
[1759442234008,0.82581995,1081.5,1078.9,0.97874083]
[1759442234508,0.82581995,1081.6,1079.0,0.81765172]
[1759442234808,0.82581995,1081.5,1079.0,0.81765172]
[1759442235109,0.82581995,1081.5,1079.1,0.81765172]
[1759442239209,0.82581995,1081.3,1079.3,0.81765172]
[1759442239408,0.82581995,1081.3,1079.4,0.81765172]
[1759442241316,0.82581995,1081.4,1079.3,0.81765172]
[1759442245313,0.82581995,1081.3,1079.3,0.81765172]
[1759442245511,0.82581995,1081.4,1079.3,0.81765172]
[1759442246209,0.82581995,1081.3,1079.3,0.81765172]
[1759442247209,0.82581995,1081.3,1079.4,0.81765172]
[1759442247814,0.82581995,1081.4,1079.3,0.81765172]
[1759442248115,0.82581995,1081.2,1079.2,0.81765172]
[1759442248311,0.82581995,1081.0,1079.3,0.81765172]
[1759442248811,0.82581995,1081.1,1079.3,0.81765172]
[1759442249214,0.82581995,1081.0,1079.3,0.81765172]
[1759442252711,0.82581995,1081.0,1079.4,0.81765172]
[1759442255020,0.82581995,1081.0,1079.3,0.81765172]
[1759442260526,0.82581995,1081.1,1079.2,0.81765172]
[1759442264831,0.82581995,1081.1,1079.3,0.81765172]
[1759442270433,0.82581995,1081.0,1079.4,0.81765172]
[1759442271734,0.82581995,1081.1,1079.3,0.81765172]
[1759442274537,0.82581995,1081.2,1079.2,0.81765172]
[1759442274831,0.82581995,1081.0,1079.5,0.81765172]
[1759442275035,0.82581995,1081.1,1079.5,0.81765172]
[1759442275634,0.82581995,1081.3,1079.3,0.81765172]
[1759442276838,0.82581995,1081.3,1079.4,0.81765172]
[1759442277738,0.82581995,1081.3,1079.3,0.81765172]
[1759442277938,0.82581995,1081.4,1079.3,0.81765172]
[1759442278440,0.82581995,1081.3,1079.3,0.81765172]
[1759442278740,0.82581995,1081.2,1079.4,0.81765172]
[1759442282443,0.82581995,1081.2,1079.5,0.81765172]
[1759442282943,0.82581995,1081.2,1079.4,0.81765172]
[1759442283841,0.82581995,1081.3,1079.4,0.81765172]
[1759442284548,0.82581995,1081.3,1079.5,0.81765172]
[1759442285241,0.82581995,1081.4,1079.5,0.81765172]
[1759442285443,0.82581995,1081.3,1079.5,0.81765172]
[1759442286350,0.82581995,1081.2,1079.6,0.81765172]
[1759442286549,0.82581995,1081.3,1079.7,0.81765172]
[1759442288952,0.82581995,1081.4,1079.7,0.81765172]
[1759442290048,0.82581995,1081.3,1079.8,0.81765172]
[1759442290252,0.82581995,1081.4,1079.8,0.81765172]
[1759442291750,0.82581995,1081.5,1079.7,0.81765172]
[1759442291950,0.82581995,1081.5,1079.6,0.81765172]
[1759442292450,0.82581995,1081.4,1079.6,0.81765172]
[1759442293355,0.82581995,1081.5,1079.6,0.81765172]
[1759442294553,0.82581995,1081.5,1079.5,0.81765172]
[1759442294751,0.82581995,1081.5,1079.6,0.81765172]
[1759442294950,0.82581995,1081.4,1079.6,0.81765172]
[1759442296357,0.82581995,1081.5,1079.6,0.81765172]
[1759442296556,1.23872992,1081.7,1079.6,0.81765172]
[1759442296557,0.82581995,1081.4,1079.6,0.81765172]
[1759442296852,0.82581995,1081.5,1079.6,0.81765172]
[1759442303864,0.82581995,1081.4,1079.7,0.81765172]
[1759442304066,0.82581995,1081.3,1079.7,0.81765172]
[1759442306168,0.82581995,1081.4,1079.7,0.81765172]
[1759442309868,0.82581995,1081.4,1079.6,0.81765172]
[1759442314275,0.82581995,1081.4,1079.7,0.81765172]
[1759442316675,0.82581995,1081.3,1079.7,0.81765172]
[1759442320675,0.82581995,1081.4,1079.7,0.81765172]
[1759442320979,0.82581995,1081.3,1079.7,0.81765172]
[1759442321376,0.82581995,1081.4,1079.7,0.81765172]
[1759442322880,0.82581995,1081.7,1079.7,0.81765172]
[1759442323082,0.82581995,1081.6,1079.8,0.81765172]
[1759442323381,0.82581995,1081.6,1079.6,1.22617336]
[1759442323382,0.82581995,1081.7,1079.7,0.81765172]
[1759442323680,0.82581995,1081.0,1079.3,0.81765172]
[1759442323880,0.82581995,1081.0,1079.4,0.81765172]
[1759442324279,0.82581995,1081.0,1079.3,0.81765172]
[1759442324482,0.82581995,1081.0,1079.4,0.81765172]
[1759442325283,0.82581995,1081.0,1079.3,0.81765172]
[1759442325482,0.82581995,1081.0,1079.4,0.81765172]
[1759442325981,0.82581995,1081.0,1079.3,0.81765172]
[1759442333091,0.82581995,1081.0,1079.4,0.81765172]
[1759442333688,0.82581995,1081.0,1079.3,0.81765172]
[1759442333889,0.82581995,1080.8,1079.1,0.81765172]
[1759442334387,0.82581995,1080.7,1079.0,0.81765172]
[1759442335089,0.82581995,1080.8,1079.0,0.81765172]
[1759442335890,0.82581995,1080.7,1078.9,0.16108911]
[1759442336090,0.82581995,1080.6,1078.9,0.16108911]
[1759442340387,1.39381995,1080.6,1078.9,0.16108911]
[1759442340986,0.82581995,1080.5,1078.9,0.16108911]
[1759442341489,1.39381995,1080.6,1078.9,0.16108911]
[1759442342290,0.568,1080.6,1078.9,0.16108911]
[1759442342994,1.209,1080.6,1078.9,0.16108911]
[1759442343190,2.03481995,1080.6,1078.9,0.16108911]
[1759442343489,1.209,1080.6,1078.9,0.16108911]
[1759442357109,2.03481995,1080.6,1078.9,0.16108911]
[1759442357809,1.209,1080.6,1078.9,0.16108911]
[1759442360308,0.82581995,1080.2,1077.5,0.81765172]
[1759442360609,0.82581995,1079.9,1078.6,0.16121]
[1759442360908,0.82581995,1079.9,1077.5,0.81765172]
[1759442361207,0.82581995,1079.9,1078.1,0.1612339]
[1759442362513,0.82581995,1080.0,1078.1,0.1612339]
[1759442363310,0.82581995,1080.1,1078.1,0.1612339]
[1759442363816,0.984,1080.0,1078.1,0.1612339]
[1759442366213,2.023,1080.0,1078.1,0.1612339]
[1759442366414,0.873,1079.9,1078.1,0.1612339]
[1759442372619,1.69881995,1079.9,1078.1,0.1612339]
[1759442372819,0.82581995,1079.7,1078.1,0.1612339]
[1759442374225,0.82581995,1079.8,1078.1,0.1612339]
[1759442375021,0.82581995,1079.6,1076.3,0.81765172]
[1759442375222,0.82581995,1079.3,1077.9,0.16134977]
[1759442375416,0.82581995,1079.4,1077.9,0.16134977]
[1759442375621,0.82581995,1079.3,1076.2,0.81765172]
[1759442375820,0.82581995,1079.4,1077.9,0.16136848]
[1759442376115,0.82581995,1079.4,1076.2,0.81765172]
[1759442376317,0.82581995,1079.4,1077.9,0.16136848]
[1759442376522,0.82581995,1079.4,1076.2,0.81765172]
[1759442376921,0.82581995,1079.7,1077.9,0.16136736]
[1759442377117,0.82581995,1079.7,1076.0,0.81765172]
[1759442377322,0.82581995,1079.7,1077.9,0.161361]
[1759442377622,0.82581995,1079.7,1076.0,0.81765172]
[1759442377919,1.69881995,1079.9,1077.9,0.16135726]
[1759442378119,1.69881995,1079.9,1076.0,0.81765172]
[1759442378319,0.82581995,1079.7,1076.2,0.81765172]
[1759442378621,0.82581995,1079.7,1078.0,0.16134678]
[1759442378818,0.82581995,1079.7,1076.3,0.81765172]
[1759442379124,0.82581995,1079.7,1077.0,0.16133706]
[1759442379518,0.82581995,1079.5,1077.0,0.16133706]
[1759442379818,0.82581995,1079.6,1077.0,0.16133706]
[1759442380821,0.82581995,1079.5,1077.0,0.16133706]
[1759442381021,0.82581995,1079.6,1077.0,0.16133706]
[1759442381324,0.873,1079.9,1077.0,0.16133706]
[1759442381325,0.82581995,1079.5,1077.0,0.16133706]
[1759442381525,0.82581995,1079.6,1077.0,0.16133706]
[1759442382022,0.82581995,1079.3,1077.0,0.16133706]
[1759442382926,0.82581995,1079.4,1077.0,0.16133706]
[1759442383125,0.82581995,1079.5,1077.0,0.16133706]
[1759442383422,0.82581995,1079.6,1077.0,0.16133706]
[1759442385229,0.82581995,1079.7,1077.0,0.16133706]
[1759442385425,0.82581995,1079.6,1077.0,0.16133706]
[1759442385629,0.82581995,1079.7,1077.0,0.16133706]
[1759442385930,0.82581995,1079.6,1077.0,0.16133706]
[1759442386428,0.82581995,1079.5,1077.0,0.16133706]
[1759442388028,0.82581995,1079.7,1077.0,0.16133706]
[1759442389329,0.82581995,1079.8,1077.0,0.16133706]
[1759442392134,0.82581995,1079.6,1077.0,0.16133706]
[1759442392333,0.82581995,1079.5,1077.0,0.16133706]
[1759442393035,0.76,1079.4,1077.0,0.16133706]
[1759442396938,0.76,1079.4,1077.0,0.97898878]
[1759442397135,0.76,1079.4,1077.0,0.16133706]
[1759442397333,0.76,1079.4,1077.0,0.97898878]
[1759442398034,0.76,1079.4,1077.1,0.81765172]
[1759442398238,0.76,1079.4,1077.3,0.81765172]
[1759442399538,0.76,1079.4,1077.2,0.81765172]
[1759442401139,0.76,1079.4,1077.0,0.16133706]
[1759442401338,0.76,1079.4,1077.0,0.97898878]
[1759442401537,0.76,1079.4,1077.2,0.81765172]
[1759442401735,0.76,1079.4,1077.0,0.16133706]
[1759442402438,0.76,1079.4,1077.1,0.81765172]
[1759442402638,0.76,1079.4,1077.3,0.81765172]
[1759442403036,0.76,1079.4,1077.4,0.81765172]
[1759442404139,0.76,1079.4,1077.3,0.81765172]
[1759442404337,0.76,1079.4,1077.4,0.81765172]
[1759442406441,0.76,1079.4,1077.0,0.16133706]
[1759442406442,0.76,1079.4,1077.3,0.81765172]
[1759442407041,0.76,1079.4,1077.2,0.81765172]
[1759442407546,0.76,1079.4,1077.4,0.81765172]
[1759442408942,0.76,1079.4,1077.3,0.81765172]
[1759442409147,0.925,1079.3,1077.3,0.81765172]
[1759442409343,0.925,1079.3,1077.4,0.81765172]
[1759442409946,0.925,1079.3,1077.3,0.81765172]
[1759442410245,0.925,1079.3,1077.4,0.81765172]
[1759442412449,0.925,1079.3,1077.5,0.81765172]
[1759442413149,0.925,1079.3,1077.4,0.81765172]
[1759442415347,0.925,1079.3,1077.5,0.81765172]
[1759442416753,0.925,1079.3,1077.6,0.81765172]
[1759442417057,0.925,1079.3,1077.4,0.81765172]
[1759442417353,0.925,1079.3,1077.5,0.81765172]
[1759442420062,0.76,1079.4,1077.6,0.81765172]
[1759442420456,0.76,1079.4,1077.5,0.81765172]
[1759442421856,0.972,1079.3,1077.5,0.81765172]
[1759442422255,1.046,1079.2,1077.5,0.81765172]
[1759442422455,1.046,1079.2,1077.6,0.81765172]
[1759442423756,1.046,1079.2,1077.7,0.81765172]
[1759442425057,1.046,1079.2,1077.8,0.81765172]
[1759442425553,1.046,1079.2,1077.7,0.81765172]
[1759442425757,1.046,1079.2,1077.8,0.81765172]
[1759442426457,1.046,1079.2,1077.9,0.81765172]
[1759442427158,1.046,1079.2,1077.8,0.81765172]
[1759442428256,1.046,1079.2,1077.9,0.81765172]
[1759442428557,1.046,1079.2,1078.0,0.81765172]
[1759442431165,1.046,1079.2,1077.9,0.81765172]
[1759442431462,1.046,1079.2,1078.0,0.81765172]
[1759442433168,1.046,1079.2,1078.1,0.81765172]
[1759442434365,1.046,1079.2,1078.0,0.81765172]
[1759442435865,1.046,1079.2,1077.9,0.81765172]
[1759442437270,1.046,1079.2,1077.7,1.22617336]
[1759442437271,1.046,1079.2,1078.0,0.81765172]
[1759442440372,1.046,1079.2,1078.1,0.81765172]
[1759442440674,1.046,1079.2,1078.2,0.81765172]
[1759442441471,1.046,1079.2,1078.3,0.81765172]
[1759442442171,1.046,1079.2,1078.4,0.81765172]
[1759442442872,1.046,1079.2,1078.1,0.81765172]
[1759442444474,1.046,1079.2,1078.2,0.81765172]
[1759442445673,1.046,1079.2,1078.0,1.22617336]
[1759442445874,1.046,1079.2,1077.9,0.81765172]
[1759442446273,1.046,1079.2,1078.0,0.81765172]
[1759442446479,1.046,1079.2,1077.9,0.81765172]
[1759442446678,1.046,1079.2,1078.0,0.81765172]
[1759442447378,1.046,1079.2,1078.2,0.81765172]
[1759442447878,1.046,1079.2,1078.3,0.81765172]
[1759442448074,1.046,1079.2,1078.2,0.81765172]
[1759442448284,0.972,1079.3,1078.3,0.81765172]
[1759442450376,0.972,1079.3,1078.5,0.81765172]
[1759442450677,0.972,1079.3,1078.4,0.81765172]
[1759442452179,0.972,1079.3,1078.2,1.22617336]
[1759442452180,0.972,1079.3,1078.5,0.81765172]
[1759442452985,0.972,1079.3,1078.4,0.81765172]
[1759442453681,0.972,1079.3,1078.5,0.81765172]
[1759442453986,0.773,1079.9,1078.5,0.81765172]
[1759442455283,0.773,1079.9,1078.7,0.81765172]
[1759442455486,0.773,1079.9,1078.8,0.81765172]
[1759442457284,0.773,1079.9,1078.7,0.81765172]
[1759442457488,0.773,1079.9,1078.8,0.81765172]
[1759442458287,0.773,1079.9,1078.7,0.81765172]
[1759442462587,0.773,1079.9,1078.6,0.81765172]
[1759442465094,0.773,1079.9,1078.7,0.81765172]
[1759442468393,0.773,1079.9,1078.6,0.81765172]
[1759442468899,0.773,1079.9,1078.7,0.81765172]
[1759442469301,0.773,1079.9,1078.6,0.81765172]
[1759442476304,0.773,1079.9,1078.8,0.81765172]
[1759442477504,0.773,1079.9,1078.6,0.81765172]
[1759442479307,0.773,1079.9,1078.5,0.81765172]
[1759442479511,0.773,1079.9,1078.6,0.81765172]
[1759442480112,0.773,1079.9,1078.4,0.81765172]
[1759442481112,0.773,1079.9,1078.5,0.81765172]
[1759442481607,0.773,1079.9,1078.6,0.81765172]
[1759442481809,0.773,1079.9,1078.5,0.81765172]
[1759442483413,0.773,1079.9,1078.6,0.81765172]
[1759442484510,0.773,1079.9,1078.1,0.81765172]
[1759442486615,0.773,1079.9,1078.2,0.81765172]
[1759442487715,1.174,1079.8,1078.2,0.81765172]
[1759442488415,1.174,1079.8,1077.0,0.16133706]
[1759442488416,1.174,1079.8,1078.4,0.81765172]
[1759442490213,1.174,1079.8,1078.3,0.81765172]
[1759442490413,1.174,1079.8,1078.4,0.81765172]
[1759442491119,1.174,1079.8,1078.5,0.81765172]
[1759442493720,1.174,1079.8,1078.2,0.81765172]
[1759442495320,1.174,1079.8,1078.1,0.81765172]
[1759442496518,1.174,1079.8,1078.0,0.81765172]
[1759442496725,1.114,1079.7,1078.1,0.81765172]
[1759442497023,1.114,1079.7,1078.0,0.81765172]
[1759442498520,1.114,1079.7,1078.1,0.81765172]
[1759442498721,1.114,1079.7,1078.2,0.81765172]
[1759442499425,1.114,1079.7,1078.3,0.81765172]
[1759442499625,1.114,1079.7,1078.4,0.81765172]
[1759442501329,1.114,1079.7,1078.5,0.81765172]
[1759442503229,1.114,1079.7,1078.6,0.81765172]
[1759442503525,1.114,1079.7,1078.3,0.81765172]
[1759442504226,1.114,1079.7,1078.4,0.81765172]
[1759442509432,1.114,1079.7,1077.0,0.16133706]
[1759442509433,1.114,1079.7,1078.8,0.81765172]
[1759442509836,1.114,1079.7,1079.0,0.81765172]
[1759442512939,1.114,1079.7,1078.9,0.81765172]
[1759442514042,1.114,1079.7,1078.8,0.81765172]
[1759442514242,1.005,1079.6,1078.8,0.81765172]
[1759442519345,1.005,1079.6,1078.7,0.81765172]
[1759442519543,1.144,1079.5,1078.8,0.81765172]
[1759442520745,1.144,1079.5,1078.7,0.81765172]
[1759442521442,1.144,1079.5,1078.8,0.81765172]
[1759442522252,1.144,1079.5,1078.7,0.81765172]
[1759442523446,1.144,1079.5,1078.8,0.81765172]
[1759442526449,1.144,1079.5,1078.9,0.81765172]
[1759442528948,1.144,1079.5,1079.0,0.81765172]
[1759442529351,1.144,1079.5,1078.9,0.81765172]
[1759442536654,1.144,1079.5,1079.0,0.81765172]
[1759442536859,1.144,1079.5,1078.9,0.81765172]
[1759442537357,1.144,1079.5,1078.6,1.22617336]
[1759442537358,1.144,1079.5,1079.0,0.81765172]
[1759442539059,1.144,1079.5,1079.1,0.81765172]
[1759442541165,1.144,1079.5,1079.2,0.81765172]
[1759442541560,1.144,1079.5,1079.3,0.81765172]
[1759442542262,1.144,1079.5,1079.2,0.81765172]
[1759442550567,1.144,1079.5,1079.1,0.81765172]
[1759442551771,1.144,1079.5,1079.0,0.81765172]
[1759442555469,1.144,1079.5,1079.1,0.81765172]
[1759442557272,1.144,1079.5,1079.2,0.81765172]
[1759442557673,0.82581995,1081.3,1079.2,0.81765172]
[1759442558673,1.139,1081.2,1079.2,0.81765172]
[1759442558867,1.139,1081.2,1079.1,0.81765172]
[1759442559369,1.047,1081.1,1079.2,0.81765172]
[1759442559871,1.87281995,1081.1,1079.1,0.81765172]
[1759442560070,0.82581995,1081.0,1079.1,0.81765172]
[1759442561070,0.876,1080.9,1079.1,0.81765172]
[1759442562073,1.70181995,1080.9,1079.2,0.81765172]
[1759442565769,1.70181995,1080.9,1079.1,0.81765172]
[1759442573182,0.82581995,1080.8,1079.2,0.81765172]
[1759442573783,1.70181995,1080.9,1079.2,0.81765172]
[1759442575884,1.70181995,1080.9,1079.3,0.81765172]
[1759442578283,1.70181995,1080.9,1079.2,0.81765172]
[1759442578284,0.876,1080.9,1079.2,0.81765172]
[1759442579991,0.876,1080.9,1079.1,0.81765172]
[1759442581489,0.964,1080.8,1079.1,0.81765172]
[1759442585788,0.964,1080.8,1079.2,0.81765172]
[1759442586992,0.964,1080.8,1079.1,0.81765172]
[1759442587796,0.964,1080.8,1079.2,0.81765172]
[1759442591291,0.82581995,1080.7,1079.4,0.81765172]
[1759442593193,0.964,1080.8,1079.4,0.81765172]
[1759442593194,1.78981995,1080.8,1079.4,0.81765172]
[1759442593697,0.964,1080.8,1079.4,0.81765172]
[1759442593998,0.964,1080.8,1079.3,0.81765172]
[1759442598602,0.93,1080.7,1079.3,0.81765172]
[1759442603601,1.01,1080.6,1079.3,0.81765172]
[1759442606206,1.01,1080.6,1079.4,0.81765172]
[1759442608202,1.01,1080.6,1079.3,0.81765172]
[1759442615222,1.01,1080.6,1078.9,1.22617336]
[1759442615223,1.01,1080.6,1079.2,0.81765172]
[1759442617324,1.123,1080.5,1079.3,0.81765172]
[1759442617523,1.123,1080.5,1079.2,0.81765172]
[1759442618421,1.123,1080.5,1079.3,0.81765172]
[1759442622921,1.123,1080.5,1079.2,0.81765172]
[1759442623426,1.123,1080.5,1079.3,0.81765172]
[1759442626625,0.844,1080.4,1079.3,0.81765172]
[1759442627027,0.844,1080.4,1079.2,0.81765172]
[1759442627525,0.844,1080.4,1079.3,0.81765172]
[1759442627922,0.844,1080.4,1079.4,0.81765172]
[1759442629226,0.844,1080.4,1079.3,0.81765172]
[1759442642035,0.844,1080.4,1079.2,0.81765172]
[1759442643836,1.66981995,1080.4,1079.2,0.81765172]
[1759442644336,1.66981995,1080.4,1079.1,0.81765172]
[1759442644538,0.82581995,1080.3,1079.0,0.81765172]
[1759442645241,0.844,1080.4,1078.9,0.81765172]
[1759442646037,0.844,1080.4,1079.0,0.81765172]
[1759442646240,0.844,1080.4,1079.1,0.81765172]
[1759442646941,0.844,1080.4,1079.2,0.81765172]
[1759442648741,1.123,1080.5,1079.2,0.81765172]
[1759442649238,1.123,1080.5,1079.3,0.81765172]
[1759442650938,1.123,1080.5,1079.2,0.81765172]
[1759442651944,1.212,1080.4,1079.2,0.81765172]
[1759442652842,1.212,1080.4,1079.3,0.81765172]
[1759442654041,1.212,1080.4,1079.2,0.81765172]
[1759442654441,0.963,1080.3,1079.2,0.81765172]
[1759442655741,1.014,1080.2,1079.2,0.81765172]
[1759442659046,1.014,1080.2,1079.3,0.81765172]
[1759442661944,1.014,1080.2,1079.0,0.81765172]
[1759442662245,1.014,1080.2,1078.8,0.81765172]
[1759442662445,1.014,1080.2,1079.9,0.81765172]
[1759442662644,0.963,1080.3,1079.3,2.04664944]
[1759442662849,0.963,1080.3,1079.5,2.8217296]
[1759442663046,1.212,1080.4,1079.9,2.04664944]
[1759442663544,1.212,1080.4,1079.5,2.8217296]
[1759442663750,1.212,1080.4,1079.4,2.04664944]
[1759442664151,1.212,1080.4,1079.6,2.04664944]
[1759442664746,1.212,1080.4,1079.3,2.04664944]
[1759442665247,1.212,1080.4,1080.3,1.23296411]
[1759442665551,1.05110007,1080.4,1080.3,1.23296411]
[1759442666252,1.05110007,1080.4,1079.3,2.04664944]
[1759442666253,1.05110007,1080.4,1080.2,1.23296411]
[1759442667353,1.05110007,1080.4,1080.3,1.23296411]
[1759442668250,1.05110007,1080.4,1080.1,1.23296411]
[1759442668555,0.89023807,1080.4,1080.1,1.23296411]
[1759442669254,0.89023807,1080.4,1080.3,0.8164631]
[1759442670055,0.89023807,1080.4,1080.2,0.8164631]
[1759442670352,0.89023807,1080.4,1080.1,0.8164631]
[1759442670557,0.89023807,1080.4,1080.0,0.8164631]
[1759442671754,0.72935004,1080.4,1080.0,0.8164631]
[1759442672262,0.72935004,1080.4,1079.9,0.8164631]
[1759442672754,0.72935004,1080.4,1080.0,0.8164631]
[1759442674654,0.56845532,1080.4,1079.7,0.8164631]
[1759442675060,0.56845532,1080.4,1079.5,0.8164631]
[1759442675260,0.56845532,1080.4,1079.4,0.8164631]
[1759442675461,0.56845532,1080.4,1077.8,4.03104228]
[1759442675462,0.56845532,1080.4,1079.5,0.8164631]
[1759442675758,0.56845532,1080.4,1079.7,0.8164631]
[1759442677461,0.56845532,1080.4,1079.6,0.8164631]
[1759442677662,0.40753232,1080.4,1079.6,0.8164631]
[1759442679158,0.40753232,1080.4,1079.5,0.8164631]
[1759442679864,0.40753232,1080.4,1079.4,0.8164631]
[1759442680661,0.24659816,1080.4,1079.4,0.8164631]
[1759442684369,0.24659816,1080.4,1079.2,0.8164631]
[1759442685367,0.24659816,1080.4,1079.3,0.8164631]
[1759442685770,0.24659816,1080.4,1079.4,0.8164631]
[1759442685968,0.24659816,1080.4,1079.6,0.8164631]
[1759442686371,0.24659816,1080.4,1079.5,0.8164631]
[1759442686570,0.24659816,1080.4,1079.7,0.8164631]
[1759442687772,0.24659816,1080.4,1079.8,0.8164631]
[1759442688168,0.08572873,1080.4,1079.8,0.8164631]
[1759442688373,0.08572873,1080.4,1079.6,0.8164631]
[1759442691273,0.96485558,1080.8,1079.6,0.8164631]
[1759442692972,0.96485558,1080.8,1079.5,0.8164631]
[1759442694176,0.80397871,1080.8,1079.5,0.8164631]
[1759442694876,0.80397871,1080.8,1079.6,0.8164631]
[1759442696477,0.80397871,1080.8,1079.7,0.8164631]
[1759442697284,0.64310928,1080.8,1079.7,0.8164631]
[1759442698082,0.64310928,1080.8,1079.6,0.8164631]
[1759442700287,0.48223836,1080.8,1079.6,0.8164631]
[1759442701888,0.48223836,1080.8,1079.4,0.8164631]
[1759442702105,0.48223836,1080.8,1079.3,0.8164631]
[1759442702292,0.48223836,1080.8,1079.5,0.8164631]
[1759442703494,0.48223836,1080.8,1079.6,0.8164631]
[1759442703692,0.48223836,1080.8,1079.5,0.8164631]
[1759442704588,0.48223836,1080.8,1079.4,1.23296411]
[1759442704589,0.32139644,1080.8,1080.2,0.8164631]
[1759442704792,0.32139644,1080.8,1080.4,0.8164631]
[1759442705190,0.32139644,1080.8,1080.6,0.8164631]
[1759442705389,0.32139644,1080.8,1080.5,0.8164631]
[1759442706294,0.32139644,1080.8,1080.6,0.8164631]
[1759442707191,0.32139644,1080.8,1080.5,0.8164631]
[1759442707391,0.32139644,1080.8,1080.6,0.8164631]
[1759442707695,0.16061174,1080.8,1080.6,0.8164631]
[1759442708096,0.16061174,1080.8,1080.5,0.8164631]
[1759442708294,0.16061174,1080.8,1080.6,0.8164631]
[1759442708695,0.08860291,1080.8,1078.9,2.04664944]
[1759442708893,0.08860291,1080.8,1078.3,2.8217296]
[1759442708894,0.00023784,1080.8,1080.1,2.04664944]
[1759442709096,0.00023784,1080.8,1080.7,1.21258504]
[1759442710197,0.00023784,1080.8,1080.4,0.80835977]
[1759442710506,1.074,1081.2,1080.5,0.80835977]
[1759442710700,0.91347468,1081.2,1080.5,0.80835977]
[1759442710997,0.82581995,1085.2,1080.5,0.80835977]
[1759442711195,0.809,1081.7,1080.5,0.80835977]
[1759442713495,0.809,1081.7,1080.6,0.80835977]
[1759442714101,0.809,1081.7,1080.7,0.80835977]
[1759442714797,0.809,1081.7,1080.8,0.80835977]
[1759442715499,0.809,1081.7,1080.9,0.80835977]
[1759442717498,0.809,1081.7,1081.0,0.80835977]
[1759442719203,0.809,1081.7,1081.1,0.80835977]
[1759442719703,0.809,1081.7,1081.2,0.80835977]
[1759442721402,0.809,1081.7,1081.3,0.80835977]
[1759442722303,0.809,1081.7,1081.5,0.80835977]
[1759442722900,0.809,1081.7,1081.4,0.80835977]
[1759442724902,0.809,1081.7,1081.3,0.80835977]
[1759442731317,0.809,1081.7,1081.2,0.80835977]
[1759442731906,0.809,1081.7,1081.3,0.80835977]
[1759442732110,0.809,1081.7,1081.2,0.80835977]
[1759442732805,0.809,1081.7,1079.8,2.04664944]
[1759442732806,0.809,1081.7,1081.3,0.80835977]
[1759442734111,0.809,1081.7,1081.4,0.80835977]
[1759442735013,0.809,1081.7,1081.3,0.80835977]
[1759442737315,0.809,1081.7,1081.4,0.80835977]
[1759442739012,0.809,1081.7,1081.2,0.80835977]
[1759442741919,0.809,1081.7,1081.1,0.80835977]
[1759442742122,0.809,1081.7,1081.2,0.80835977]
[1759442744217,0.809,1081.7,1081.1,0.80835977]
[1759442744917,0.809,1081.7,1079.9,2.04664944]
[1759442744918,0.809,1081.7,1081.2,0.80835977]
[1759442746125,0.809,1081.7,1081.4,0.80835977]
[1759442746321,0.809,1081.7,1081.6,0.80835977]
[1759442748220,0.809,1081.7,1081.5,1.21258504]
[1759442749723,0.809,1081.7,1081.6,0.8212073]
[1759442749928,0.809,1081.7,1081.5,0.8212073]
[1759442752627,0.809,1081.7,1081.6,0.8212073]
[1759442756333,0.809,1081.7,1081.4,1.21258504]
[1759442756737,0.809,1081.7,1080.6,2.04664944]
[1759442756738,0.809,1081.7,1081.5,1.21258504]
[1759442759535,0.809,1081.7,1081.6,0.82420955]
[1759442759734,0.809,1081.7,1081.5,1.21258504]
[1759442759936,0.809,1081.7,1081.6,0.82430499]
[1759442760134,0.809,1081.7,1081.4,0.82430499]
[1759442760639,0.809,1081.7,1081.5,0.82430499]
[1759442762238,0.809,1081.7,1081.6,0.82430499]
[1759442764436,0.809,1081.7,1081.2,0.82430499]
[1759442764640,0.809,1081.7,1081.3,0.82430499]
[1759442764936,0.809,1081.7,1081.4,0.82430499]
[1759442766043,0.809,1081.7,1081.3,0.82430499]
[1759442766243,0.809,1081.7,1081.2,0.82430499]
[1759442766442,0.809,1081.7,1080.1,2.8217296]
[1759442766443,0.809,1081.7,1081.1,0.82430499]
[1759442767241,1.028,1082.4,1081.0,0.82430499]
[1759442769141,1.028,1082.4,1081.1,0.82430499]
[1759442769546,1.134,1082.3,1081.1,0.82430499]
[1759442770345,1.134,1082.3,1081.0,0.82430499]
[1759442774250,1.134,1082.3,1080.9,0.82430499]
[1759442777250,1.134,1082.3,1080.8,0.82430499]
[1759442779957,1.134,1082.3,1080.9,0.82430499]
[1759442781754,1.134,1082.3,1080.8,0.82430499]
[1759442782258,1.134,1082.3,1080.9,0.82430499]
[1759442782654,1.134,1082.3,1080.7,0.82430499]
[1759442784855,1.134,1082.3,1080.9,0.82430499]
[1759442785060,1.134,1082.3,1080.8,0.82430499]
[1759442785259,1.134,1082.3,1080.7,0.82430499]
[1759442787256,1.134,1082.3,1080.6,0.82430499]
[1759442787955,1.134,1082.3,1080.5,0.82430499]
[1759442789162,1.134,1082.3,1080.3,0.82430499]
[1759442789461,1.134,1082.3,1080.4,0.82430499]
[1759442789656,1.134,1082.3,1080.3,0.82430499]
[1759442790557,0.847,1082.2,1080.3,0.82430499]
[1759442792257,0.847,1082.2,1080.4,0.82430499]
[1759442794564,0.847,1082.2,1080.5,0.82430499]
[1759442796963,0.847,1082.2,1080.6,0.82430499]
[1759442797263,0.847,1082.2,1080.4,1.21258504]
[1759442797264,0.847,1082.2,1080.5,0.82430499]